bitfinex/quotes_ETHUSD_20220305
["timestamp","ask_amount","ask_price","bid_price","bid_amount"]
[1646486249658,0.14999862,2646.4,2646.3,3.70179228]
[1646486249896,1.62458931,2646.4,2646.3,3.77746813]
[1646486250905,0.14999862,2646.4,2646.3,3.77746813]
[1646486252605,0.14999862,2646.4,2646.3,3.7]
[1646486252806,0.14999862,2646.4,2646.3,3.77746526]
[1646486253647,0.14999862,2646.4,2646.3,7.27746526]
[1646486254149,0.14999862,2646.4,2646.3,8.10546526]
[1646486254346,0.14999862,2646.4,2646.3,9.27753612]
[1646486254950,0.00258021,2646.8,2646.4,5.376]
[1646486255151,0.00258021,2646.8,2646.5,4.02946526]
[1646486255350,1.47244604,2647.4,2646.6,0.07746526]
[1646486255550,2.06204876,2647.6,2646.6,0.52946526]
[1646486255551,0.00251202,2646.8,2646.6,0.52946526]
[1646486255751,0.00251202,2646.8,2646.7,0.07745276]
[1646486256552,0.68444876,2647.5,2646.7,0.07745276]
[1646486256854,0.00251222,2646.9,2646.8,0.07745276]
[1646486257051,0.00251222,2646.9,2646.6,0.07745276]
[1646486257308,0.00251222,2646.9,2646.7,0.07745276]
[1646486257500,0.00251222,2646.9,2646.4,1.1792]
[1646486257800,2.15831159,2647.3,2646.5,0.07746211]
[1646486258001,0.00251539,2646.9,2646.5,0.07746211]
[1646486258199,0.00251539,2646.9,2646.7,0.9371734]
[1646486258401,0.00251539,2646.9,2646.8,0.07746211]
[1646486258800,1.47386283,2647.3,2646.8,0.07746211]
[1646486259202,0.00252011,2647.0,2646.8,0.07746211]
[1646486259405,0.00252011,2647.0,2646.8,0.07602046]
[1646486260102,0.68444876,2647.6,2646.8,0.07602046]
[1646486260305,0.00252009,2647.0,2646.8,0.07602046]
[1646486260504,0.00252009,2647.0,2646.9,1.14968641]
[1646486261368,1.88714876,2647.7,2646.9,1.14968641]
[1646486261551,0.00251944,2647.1,2646.9,1.14968641]
[1646486262651,0.68444876,2647.6,2646.9,1.14968641]
[1646486262852,0.00251899,2647.1,2646.9,1.14968641]
[1646486263652,0.87314876,2647.6,2646.7,4.9316]
[1646486264154,0.00251899,2647.1,2646.7,4.9316]
[1646486264812,0.95499367,2647.0,2646.7,3.7]
[1646486265004,1.06044876,2647.3,2646.7,3.7]
[1646486265203,0.00251913,2647.0,2646.7,3.7]
[1646486266204,0.68444876,2647.2,2646.7,3.7]
[1646486266404,0.0025192,2647.0,2646.7,3.7]
[1646486267210,1.06044876,2647.3,2646.7,3.7]
[1646486267410,0.68444876,2647.3,2646.7,3.7]
[1646486267609,0.0025192,2647.0,2646.7,3.7]
[1646486268412,0.68444876,2647.4,2646.7,3.7]
[1646486268660,0.68444876,2647.5,2647.0,1.18847971]
[1646486269662,0.46388312,2646.8,2646.7,4.8595]
[1646486269965,0.46388312,2646.8,2646.7,8.23389882]
[1646486270165,0.46388312,2646.8,2646.7,4.98589882]
[1646486271866,0.46388312,2646.8,2646.7,1.48589882]
[1646486272165,0.46388312,2646.8,2646.3,0.25179228]
[1646486272166,0.46388312,2646.8,2646.3,0.94186318]
[1646486272403,0.46388312,2646.8,2646.3,0.45379228]
[1646486273604,0.46641655,2646.8,2646.3,0.45379228]
[1646486274205,0.46641655,2646.8,2646.3,24.14321228]
[1646486274707,0.46641342,2646.8,2646.3,24.14321228]
[1646486275308,0.46641342,2646.8,2646.3,24.04321228]
[1646486275708,0.46388312,2646.8,2646.5,0.9572832]
[1646486275907,0.46641254,2646.8,2646.5,0.9572832]
[1646486276952,0.46388312,2646.8,2646.5,0.9572832]
[1646486277154,0.4664126,2646.8,2646.5,0.9572832]
[1646486278158,0.46388312,2646.8,2646.5,0.9572832]
[1646486278357,0.46641289,2646.8,2646.5,0.9572832]
[1646486278757,0.46641289,2646.8,2646.5,4.6572832]
[1646486279376,0.46641289,2646.8,2646.6,0.07745632]
[1646486279377,0.46388312,2646.8,2646.6,0.07745632]
[1646486279558,0.4664131,2646.8,2646.6,0.07745632]
[1646486280599,0.46388312,2646.8,2646.6,0.07745632]
[1646486280802,0.46641313,2646.8,2646.6,0.07745632]
[1646486281204,1.44920744,2646.7,2646.6,0.07745632]
[1646486284953,1.44920744,2646.7,2646.5,1.77745632]
[1646486287710,1.44920744,2646.7,2646.6,0.89586988]
[1646486289514,0.46641304,2646.8,2646.7,4.0]
[1646486290115,0.46388312,2646.8,2646.7,4.0]
[1646486291064,0.46388312,2646.8,2646.7,4.6900709]
[1646486291662,1.1272,2647.7,2646.8,5.0]
[1646486291663,0.00252994,2646.9,2646.8,5.0]
[1646486291862,0.00252994,2646.9,2646.8,5.452]
[1646486292064,0.00252994,2646.9,2646.8,5.402]
[1646486292262,0.00252994,2646.9,2646.8,6.4680709]
[1646486292661,0.87334876,2648.0,2646.8,17.9280709]
[1646486292862,0.87334876,2648.0,2647.0,0.25]
[1646486293064,0.87334876,2648.0,2647.1,0.452]
[1646486293065,0.68444876,2648.0,2647.1,0.452]
[1646486293268,1.3643,2648.1,2647.1,0.452]
[1646486293269,0.68444876,2648.1,2647.1,0.452]
[1646486293664,0.1887,2648.2,2647.1,0.452]
[1646486293665,0.68444876,2648.2,2647.1,0.452]
[1646486293866,0.1887,2648.1,2647.1,0.452]
[1646486294066,0.00252958,2647.7,2647.1,0.452]
[1646486294266,0.00252958,2647.7,2647.6,1.010868]
[1646486295002,0.68444876,2648.3,2647.6,1.010868]
[1646486295206,0.0015049,2647.8,2647.6,1.010868]
[1646486295410,0.0015049,2647.8,2647.6,1.462868]
[1646486296108,0.68444876,2648.6,2647.6,1.455924]
[1646486296308,0.87314876,2648.8,2648.2,1.15648092]
[1646486296808,0.1887,2648.8,2648.2,1.15648092]
[1646486297210,0.1887,2648.8,2648.2,1.60848092]
[1646486297412,0.1887,2648.8,2648.6,0.93385073]
[1646486297613,0.68444876,2648.9,2648.2,0.452]
[1646486297812,0.00283897,2648.6,2648.2,0.452]
[1646486298553,0.68444876,2648.9,2648.2,0.452]
[1646486298751,0.68444876,2648.9,2648.4,1.01591877]
[1646486299358,0.68444876,2648.9,2648.4,3.81591877]
[1646486299559,1.24914876,2649.1,2648.4,3.80895977]
[1646486299759,1.24914876,2649.1,2648.4,2.8]
[1646486300058,1.06044876,2649.1,2648.4,2.8]
[1646486300959,2.26775137,2648.9,2648.4,2.8]
[1646486301161,0.376,2648.8,2648.4,2.8]
[1646486301358,1.06044876,2648.8,2648.4,2.8]
[1646486301560,0.376,2648.8,2648.4,2.8]
[1646486302409,0.00294539,2648.7,2648.4,2.8]
[1646486303510,0.376,2649.0,2648.5,0.91859281]
[1646486303713,0.00294541,2648.7,2648.5,0.91859281]
[1646486303911,0.00294541,2648.7,2648.5,0.91046281]
[1646486304710,0.04251957,2648.8,2648.5,0.91046281]
[1646486304912,0.00294539,2648.7,2648.5,0.91046281]
[1646486305613,0.00294539,2648.7,2648.5,1.36246281]
[1646486306081,0.00171935,2648.7,2648.5,1.36246281]
[1646486307078,0.03951657,2648.8,2648.5,1.36246281]
[1646486307284,0.00284878,2648.7,2648.5,1.36246281]
[1646486307484,0.00284878,2648.7,2648.5,2.30661281]
[1646486308185,1.0,2649.7,2648.6,0.376]
[1646486308386,7.47,2649.8,2648.7,0.778]
[1646486308584,0.00839042,2649.1,2648.7,0.778]
[1646486309187,0.00839042,2649.1,2648.8,0.94397]
[1646486309390,7.47,2649.8,2649.0,0.94396]
[1646486309586,1.40339198,2649.7,2649.2,0.326]
[1646486309813,7.47,2649.8,2649.3,0.828]
[1646486310101,1.68444876,2650.4,2649.3,0.828]
[1646486310102,7.47,2650.3,2649.3,0.828]
[1646486310301,1.39275707,2650.2,2649.3,0.828]
[1646486310500,1.39275707,2650.2,2649.3,0.452]
[1646486310901,1.76875707,2650.2,2649.3,0.452]
[1646486311104,1.39275707,2650.1,2649.3,0.452]
[1646486311702,1.39275707,2650.1,2649.5,0.93031242]
[1646486311902,1.39275707,2650.0,2649.5,0.93031242]
[1646486312101,8.47,2650.3,2649.5,0.93031242]
[1646486312102,1.39275707,2649.9,2649.5,0.93031242]
[1646486312303,8.47,2650.3,2649.5,0.93031242]
[1646486312508,1.39123617,2650.2,2649.5,1.38231242]
[1646486313407,0.00283029,2650.0,2649.5,1.38231242]
[1646486314053,0.00283029,2650.0,2649.5,1.39454132]
[1646486314255,1.39123617,2650.2,2649.5,1.39454132]
[1646486314454,0.00278786,2649.9,2649.5,0.4642289]
[1646486315458,1.39123617,2650.2,2649.5,0.4642289]
[1646486315658,0.00278788,2649.8,2649.5,0.4642289]
[1646486316661,1.389647,2650.1,2649.5,0.4642289]
[1646486317059,0.00278791,2649.8,2649.5,0.4642289]
[1646486317916,9.55294538,2650.3,2649.5,0.4642289]
[1646486318117,0.00273291,2649.8,2649.5,0.4642289]
[1646486319122,7.47,2650.3,2649.5,0.4642289]
[1646486319318,0.00273291,2649.8,2649.7,0.02401971]
[1646486319520,0.00273291,2649.8,2649.7,3.97601971]
[1646486319720,0.00273291,2649.8,2649.7,0.47601971]
[1646486320322,7.47,2650.3,2649.7,0.47601971]
[1646486320522,0.00273287,2649.9,2649.7,0.47601971]
[1646486320822,0.00273287,2649.9,2649.7,0.02401971]
[1646486321458,0.376,2650.0,2649.7,0.02401971]
[1646486321857,0.00274081,2649.9,2649.7,0.02401971]
[1646486322861,0.376,2650.0,2649.7,0.02401971]
[1646486323061,0.00274081,2649.9,2649.7,0.02401971]
[1646486323863,1.38948209,2650.1,2649.8,0.01229076]
[1646486324062,0.00274081,2649.9,2649.8,0.01229076]
[1646486325105,7.47,2650.3,2649.8,0.01229076]
[1646486325510,0.00273963,2650.0,2649.8,0.01229076]
[1646486326313,1.38933786,2650.2,2649.8,0.01229076]
[1646486326512,0.00273961,2650.0,2649.8,0.01229076]
[1646486326916,1.35674954,2650.0,2649.8,0.01229076]
[1646486327114,1.38933786,2649.9,2649.8,0.01229076]
[1646486327716,4.88933786,2649.9,2649.8,0.01229076]
[1646486328117,6.26533786,2649.9,2649.7,0.00702403]
[1646486328416,5.26533786,2649.8,2649.7,0.00702403]
[1646486328961,6.26533786,2649.8,2649.5,0.01218949]
[1646486329162,1.76533786,2649.7,2649.5,0.01218949]
[1646486329365,2.92917845,2649.6,2649.5,0.01218949]
[1646486329569,3.92917845,2649.6,2649.5,0.01218949]
[1646486329765,4.92917845,2649.6,2649.5,2.30714235]
[1646486331867,2.76533786,2649.6,2649.5,2.30714235]
[1646486333109,1.76533786,2649.6,2649.5,2.30714235]
[1646486335212,1.38933786,2649.6,2649.5,2.30714235]
[1646486335411,0.68717286,2649.7,2649.5,2.30714235]
[1646486335412,0.0027241,2649.7,2649.5,2.30714235]
[1646486335611,1.39206196,2649.7,2649.5,2.30714235]
[1646486335812,0.92374226,2650.1,2649.5,2.30714235]
[1646486335813,1.38933786,2649.6,2649.5,2.30714235]
[1646486336051,0.68444876,2649.9,2649.5,3.45689939]
[1646486336351,0.00274041,2649.7,2649.5,2.30714235]
[1646486336551,1.39207827,2649.7,2649.5,2.30714235]
[1646486336755,1.38933786,2649.6,2649.5,2.30714235]
[1646486337152,0.68444876,2650.0,2649.5,2.30714235]
[1646486337153,2.07378662,2650.0,2649.5,2.30714235]
[1646486337358,0.00274041,2649.7,2649.5,2.30714235]
[1646486337758,1.39207827,2649.7,2649.5,2.30714235]
[1646486337958,1.38933786,2649.6,2649.5,2.30714235]
[1646486338457,0.68444876,2649.9,2649.5,2.30714235]
[1646486338657,0.00274041,2649.7,2649.5,2.30714235]
[1646486339559,1.38933786,2649.8,2649.6,0.94874989]
[1646486339821,1.3910548,2649.7,2649.6,0.94874989]
[1646486340206,0.00171694,2649.7,2649.6,0.94874989]
[1646486340604,1.38933786,2650.0,2649.6,0.94874989]
[1646486340804,2.07378662,2650.3,2649.6,0.94874989]
[1646486341006,0.00171694,2649.8,2649.6,0.94874989]
[1646486341604,0.00171694,2649.8,2649.5,0.452]
[1646486341805,0.00686673,2650.2,2649.5,0.452]
[1646486341806,2.07378662,2650.2,2649.5,0.452]
[1646486342008,1.38933786,2650.1,2649.5,0.452]
[1646486342207,0.00171694,2649.8,2649.5,0.452]
[1646486342809,1.3910548,2649.8,2649.5,0.452]
[1646486343009,1.38933786,2649.7,2649.5,0.452]
[1646486343209,1.38933786,2649.6,2649.5,0.452]
[1646486343409,0.00295035,2649.8,2649.5,0.452]
[1646486344054,1.39228821,2649.8,2649.5,0.452]
[1646486344254,1.38933786,2649.7,2649.6,1.04726774]
[1646486344856,0.00295035,2649.8,2649.6,1.04726774]
[1646486345457,2.07378662,2650.1,2649.5,0.452]
[1646486345657,1.38933786,2650.0,2649.5,0.452]
[1646486345857,0.00295032,2649.8,2649.5,0.452]
[1646486346660,2.07378662,2650.1,2649.7,0.95678314]
[1646486346860,0.00295035,2649.8,2649.7,0.95678314]
[1646486347613,0.00295035,2649.8,2649.7,4.90878314]
[1646486347812,0.00295035,2649.8,2649.7,1.40878314]
[1646486348012,0.00295035,2649.8,2649.7,1.53783184]
[1646486348013,1.38933786,2649.8,2649.7,1.53783184]
[1646486348210,0.00285294,2649.9,2649.7,1.53783184]
[1646486348411,0.00285294,2649.9,2649.7,1.40878314]
[1646486348810,1.3921908,2649.9,2649.7,1.40878314]
[1646486349011,1.38933786,2649.8,2649.7,1.40878314]
[1646486349212,1.38933786,2649.8,2649.7,1.53781217]
[1646486349510,0.0017283,2649.9,2649.7,0.58102903]
[1646486349710,0.0017283,2649.9,2649.7,0.452]
[1646486349910,0.37629522,2649.6,2649.4,0.376]
[1646486350111,0.37629522,2649.6,2649.5,4.08945838]
[1646486350315,0.37629522,2649.6,2649.5,0.13745838]
[1646486350712,1.7649461,2649.6,2649.5,0.13745838]
[1646486350911,1.7649461,2649.6,2649.1,3.5]
[1646486351164,1.38865088,2649.5,2649.2,0.13758041]
[1646486351465,1.38865088,2649.5,2649.3,0.13758041]
[1646486351663,1.38865088,2649.5,2649.4,0.13758041]
[1646486351863,1.39161322,2649.5,2649.0,0.58958041]
[1646486352064,1.39161322,2649.5,2649.1,0.13758041]
[1646486352366,1.39161322,2649.5,2649.1,3.63758041]
[1646486352566,1.39161322,2649.5,2649.2,0.13758041]
[1646486352764,1.38865088,2649.5,2649.3,0.13758041]
[1646486352969,1.38865088,2649.5,2649.4,0.13758041]
[1646486353771,1.38865088,2649.5,2648.9,2.55]
[1646486353968,1.38865088,2649.5,2649.0,0.13763569]
[1646486355511,0.00273847,2649.4,2649.0,0.13763569]
[1646486355906,0.00273847,2649.4,2649.1,0.13763569]
[1646486356105,0.00273847,2649.4,2648.7,1.2213]
[1646486356306,2.07309964,2649.5,2648.8,0.13767103]
[1646486356706,0.00273849,2649.3,2648.8,0.13767103]
[1646486357510,2.07309964,2649.5,2648.8,0.13767103]
[1646486357710,0.00273849,2649.2,2648.8,0.13767103]
[1646486358757,1.38865088,2649.4,2648.7,1.2213]
[1646486358957,0.0027569,2649.2,2648.7,1.2213]
[1646486359762,0.0027569,2649.2,2648.7,4.7213]
[1646486359963,1.38865088,2649.4,2648.7,4.7213]
[1646486360164,0.00275687,2649.2,2648.8,0.828]
[1646486360363,0.00275687,2649.2,2649.1,0.86557624]
[1646486360563,0.00275687,2649.2,2649.1,16.65357624]
[1646486360564,5.687e-05,2649.2,2649.1,16.65357624]
[1646486360767,0.01102644,2649.5,2649.4,11.836]
[1646486360964,0.01102644,2649.5,2649.4,0.828]
[1646486361163,0.37629522,2649.6,2649.4,4.328]
[1646486361363,0.37629522,2649.6,2649.5,3.5]
[1646486361567,0.37629522,2649.6,2649.5,4.82501374]
[1646486366463,0.37629522,2649.6,2649.5,16.28501374]
[1646486366662,0.37629522,2649.6,2649.5,17.22880374]
[1646486367565,0.37629522,2649.6,2649.5,16.28501374]
[1646486367766,0.37629522,2649.6,2649.5,4.82501374]
[1646486368168,0.37629522,2649.6,2649.5,1.32501374]
[1646486369171,0.37488744,2649.6,2649.5,1.32501374]
[1646486369670,0.37488744,2649.6,2649.5,3.62501374]
[1646486369908,0.37488744,2649.6,2649.5,2.3]
[1646486372813,4.25088744,2649.6,2649.5,2.3]
[1646486373012,0.75088744,2649.6,2649.5,2.3]
[1646486373212,1.75088744,2649.6,2649.5,2.3]
[1646486373565,0.75088744,2649.6,2649.5,2.3]
[1646486378718,2.1208113,2649.6,2649.5,2.3]
[1646486380518,1.7448113,2649.6,2649.5,2.3]
[1646486382081,1.7448113,2649.6,2649.5,3.22991368]
[1646486383492,1.7448113,2649.6,2649.5,2.3]
[1646486385912,1.7448113,2649.6,2649.5,2.45542589]
[1646486386112,1.7448113,2649.6,2649.5,2.3]
[1646486386311,1.7448113,2649.6,2649.5,2.45542546]
[1646486386515,1.7448113,2649.6,2649.5,2.3]
[1646486388569,1.7448113,2649.6,2649.5,2.45541001]
[1646486389172,1.7448113,2649.6,2649.5,3.48215704]
[1646486389567,1.7448113,2649.6,2649.5,3.93415704]
[1646486391378,0.37488744,2649.6,2649.5,3.93415704]
[1646486392174,1.74325873,2649.6,2649.5,2.45541001]
[1646486392415,1.74325873,2649.6,2649.5,2.30703415]
[1646486392919,1.74325873,2649.6,2649.5,2.15162414]
[1646486396567,2.42770749,2649.6,2649.5,2.15162414]
[1646486397571,3.92263318,2649.6,2649.5,2.15162414]
[1646486397771,3.376,2649.5,2649.1,23.664383]
[1646486397971,1.74437129,2649.4,2649.1,23.664383]
[1646486398171,1.36837129,2649.3,2649.1,23.664383]
[1646486399920,1.37132752,2649.3,2649.1,25.964383]
[1646486400222,1.36837129,2649.2,2649.1,25.964383]
[1646486401324,1.36837129,2649.2,2649.1,27.22159135]
[1646486401519,1.36837129,2649.2,2649.1,25.37359135]
[1646486401719,0.0029562,2649.3,2649.1,25.74959135]
[1646486401919,0.0029562,2649.3,2649.2,0.16042094]
[1646486402126,0.68547933,2650.0,2649.5,0.376]
[1646486402323,0.68547933,2650.0,2649.4,5.0]
[1646486402324,0.68547933,2650.4,2649.7,0.376]
[1646486402524,0.68547933,2650.5,2649.8,4.328]
[1646486402725,0.00096,2650.6,2649.8,0.828]
[1646486402726,0.68643933,2650.6,2649.8,0.828]
[1646486403025,0.68547933,2650.6,2649.8,0.828]
[1646486403223,0.68547933,2650.6,2650.4,1.09735791]
[1646486403667,0.68547933,2650.6,2650.0,0.452]
[1646486404771,0.00265116,2650.4,2650.1,0.96860889]
[1646486405169,0.00265116,2650.4,2649.9,1.2031]
[1646486405369,0.68813049,2650.4,2649.9,1.2031]
[1646486405668,0.87397933,2650.5,2649.6,3.5]
[1646486405872,0.68643933,2650.5,2649.4,4.6774]
[1646486406068,0.00265123,2650.3,2649.6,3.5]
[1646486406268,0.00265123,2650.3,2649.7,0.88348926]
[1646486406470,0.00265123,2650.3,2650.1,0.96806449]
[1646486406869,0.68547933,2650.5,2650.1,0.96806449]
[1646486407069,0.69658762,2650.5,2650.1,0.96806449]
[1646486407329,0.64658762,2650.5,2650.1,0.96806449]
[1646486408120,0.1885,2650.6,2650.1,0.96806449]
[1646486408319,0.00267277,2650.4,2650.1,0.96806449]
[1646486409323,0.9138075,2650.7,2650.1,0.96806449]
[1646486409520,0.00161937,2650.4,2650.1,0.96806449]
[1646486409922,0.00161937,2650.4,2649.7,1.5534]
[1646486410323,0.00096,2650.6,2649.8,3.5]
[1646486410521,0.9138075,2650.7,2649.8,3.5]
[1646486410723,0.00147888,2650.2,2649.8,3.5]
[1646486410921,0.00147888,2650.2,2650.0,1.14145758]
[1646486411674,0.9138075,2650.7,2649.7,1.1774]
[1646486411872,0.00273413,2650.2,2649.7,1.1774]
[1646486412681,0.00273413,2650.2,2650.1,0.99539759]
[1646486412879,0.1885,2650.6,2650.1,0.91856381]
[1646486413076,0.0109351,2650.5,2650.1,0.91856381]
[1646486413876,0.0109351,2650.5,2649.6,4.7259]
[1646486414075,0.00096,2650.5,2649.6,5.1779]
[1646486414276,0.00273666,2650.4,2649.6,5.1779]
[1646486414676,0.00273666,2650.4,2649.6,5.5539]
[1646486414919,0.00273666,2650.4,2650.2,1.03000024]
[1646486415123,0.00273666,2650.4,2650.3,3.952]
[1646486415323,0.00096,2650.7,2650.3,4.328]
[1646486415519,0.01094557,2650.5,2650.3,4.328]
[1646486415720,0.01094557,2650.5,2650.3,0.828]
[1646486416020,4.557e-05,2650.5,2650.3,12.288]
[1646486416223,0.00096,2651.3,2650.8,11.836]
[1646486416419,1.73535244,2652.0,2651.0,0.376]
[1646486416420,0.00096,2651.6,2651.0,0.376]
[1646486416620,0.9128475,2651.9,2651.1,0.452]
[1646486416621,0.00096,2651.7,2651.1,0.452]
[1646486416819,0.9128475,2651.9,2651.1,0.452]
[1646486416820,0.00096,2651.8,2651.1,0.452]
[1646486417023,0.9128475,2651.9,2651.1,0.452]
[1646486417219,0.91212262,2651.4,2651.1,0.452]
[1646486417423,0.91212262,2651.4,2650.4,1.6994]
[1646486417424,3.49893182,2651.3,2650.4,1.6994]
[1646486417625,0.68499404,2651.3,2650.4,1.6994]
[1646486417822,0.91212262,2651.4,2650.4,1.6994]
[1646486417823,0.68499404,2651.2,2650.4,1.6994]
[1646486418023,0.68499404,2651.3,2650.4,1.6994]
[1646486418768,0.376,2651.2,2650.4,1.6994]
[1646486418968,0.68499404,2651.3,2650.4,1.6994]
[1646486418969,1.06099404,2651.3,2650.4,1.6994]
[1646486419168,0.00148628,2651.0,2650.4,1.6994]
[1646486419973,0.376,2651.2,2650.4,1.6994]
[1646486420275,0.00274943,2650.8,2650.4,1.6994]
[1646486420472,0.00274943,2650.8,2650.2,0.25]
[1646486420473,0.37874943,2650.8,2650.2,0.25]
[1646486420674,0.376,2650.4,2649.5,0.24856196]
[1646486420872,0.376,2650.2,2649.4,1.688]
[1646486421075,1.45471347,2650.2,2649.4,1.688]
[1646486422178,1.2597659,2650.1,2649.4,1.688]
[1646486422629,1.2597659,2650.0,2649.4,1.688]
[1646486422829,1.2597659,2650.1,2649.4,1.688]
[1646486423026,4.68966,2650.5,2649.5,0.26328514]
[1646486423027,1.2597659,2650.0,2649.5,0.26328514]
[1646486423226,1.2597659,2649.9,2649.5,0.26328514]
[1646486423426,1.75953,2650.4,2649.7,1.36789877]
[1646486423626,1.00096,2650.5,2649.8,0.71524236]
[1646486423627,1.25986379,2650.3,2649.8,0.71524236]
[1646486423826,0.18946,2650.8,2649.9,0.26324236]
[1646486424028,1.26007948,2650.7,2650.0,0.452]
[1646486424428,1.26007948,2650.6,2650.0,0.452]
[1646486424631,0.376,2650.4,2649.4,1.938]
[1646486424830,0.376,2650.4,2649.4,0.25]
[1646486424831,1.06099404,2650.2,2649.4,0.25]
[1646486425032,3.5,2650.3,2649.4,0.25]
[1646486425033,0.376,2650.0,2649.4,0.25]
[1646486425229,1.63607948,2649.9,2649.2,2.2087]
[1646486425433,1.04712702,2649.6,2649.2,2.2087]
[1646486425631,1.26007948,2649.5,2649.2,0.5387]
[1646486426379,1.0,2649.9,2649.3,3.50295124]
[1646486426576,2.26321696,2649.8,2649.3,0.00295124]
[1646486426776,1.26321696,2649.7,2649.3,0.00295124]
[1646486426977,1.26321696,2649.6,2649.3,0.00295124]
[1646486427178,0.68499404,2650.2,2649.2,0.5387]
[1646486427379,0.98933383,2649.7,2649.2,3.5]
[1646486427577,0.98933383,2649.7,2648.8,1.67]
[1646486427578,1.26324231,2649.6,2648.8,1.67]
[1646486428181,0.376,2649.5,2648.7,0.25]
[1646486428377,0.376,2649.3,2648.7,0.25]
[1646486428577,1.26324231,2649.2,2648.7,0.25]
[1646486428777,1.26324231,2649.3,2648.7,0.25]
[1646486429182,1.26324231,2649.2,2648.7,0.25]
[1646486429383,1.0,2649.7,2648.7,0.25]
[1646486429384,1.26324231,2649.5,2648.7,0.25]
[1646486429581,1.26324231,2649.4,2648.7,0.25]
[1646486429861,0.376,2649.8,2648.7,0.25]
[1646486430049,1.26240799,2649.7,2648.9,1.09417448]
[1646486430456,1.26240799,2649.7,2649.2,3.5]
[1646486430954,1.26240799,2649.6,2648.9,1.09417448]
[1646486431153,0.1887,2650.1,2648.9,1.09417448]
[1646486431352,1.26238539,2650.0,2648.9,1.09417448]
[1646486431555,0.1887,2649.9,2648.9,1.09417448]
[1646486431753,1.26238539,2649.8,2648.9,1.09417448]
[1646486431953,1.26238539,2649.8,2649.2,0.2594046]
[1646486432154,1.26238539,2649.7,2649.2,0.2594046]
[1646486432354,1.26238539,2649.6,2649.2,0.2594046]
[1646486432555,1.26238539,2649.9,2649.2,0.2594046]
[1646486432756,1.26242829,2649.8,2649.2,0.2594046]
[1646486432957,1.26242829,2649.7,2649.2,0.2594046]
[1646486433156,1.26242829,2649.6,2649.2,0.2594046]
[1646486435170,1.26242829,2649.6,2649.1,23.23318623]
[1646486438926,1.26242829,2649.5,2649.1,23.23318623]
[1646486439128,0.68499404,2650.1,2649.1,23.23318623]
[1646486439326,3.5,2650.0,2649.1,23.23318623]
[1646486439626,1.25497387,2649.9,2649.1,23.23318623]
[1646486440728,1.25497387,2649.9,2649.2,0.98200288]
[1646486442081,1.25497387,2649.9,2649.1,23.23318623]
[1646486442485,0.376,2649.8,2649.1,23.23318623]
[1646486442686,1.25497387,2649.7,2649.4,0.00294802]
[1646486443287,2.04433145,2650.0,2649.4,0.00294802]
[1646486443488,1.25477407,2649.9,2649.4,0.00294802]
[1646486443691,1.25477407,2649.9,2649.2,0.26720812]
[1646486443888,1.25477407,2649.9,2649.4,0.00294802]
[1646486444092,0.376,2649.8,2649.4,0.00294802]
[1646486444289,1.25477407,2649.7,2649.4,0.00294802]
[1646486444825,1.25477407,2649.7,2649.2,0.26720812]
[1646486445026,1.25477407,2649.7,2649.4,0.00294802]
[1646486445925,1.25477407,2649.6,2649.4,0.00294802]
[1646486446131,1.25477407,2649.5,2649.1,23.23318623]
[1646486446334,2.04433145,2650.0,2649.4,0.00294802]
[1646486446533,1.25524745,2649.9,2649.4,0.00294802]
[1646486446933,1.25524745,2649.8,2649.4,0.00294802]
[1646486447134,1.25524745,2650.1,2649.4,0.00294802]
[1646486447335,1.25524745,2650.0,2649.2,0.26727537]
[1646486447535,1.25524745,2649.9,2649.5,0.00294797]
[1646486447734,1.25524745,2649.8,2649.5,0.00294797]
[1646486447936,1.25524745,2649.7,2649.5,0.00294797]
[1646486448136,1.25524745,2649.6,2649.5,0.00294797]
[1646486448582,1.25524745,2649.9,2649.1,23.23318623]
[1646486448775,1.25524745,2649.8,2649.5,0.002948]
[1646486448978,1.25524745,2649.7,2649.5,0.002948]
[1646486449576,1.25524745,2649.7,2649.1,23.23318623]
[1646486449978,1.25524745,2649.7,2649.5,0.002948]
[1646486450778,1.25524745,2649.7,2649.1,23.23318623]
[1646486451580,1.25524745,2649.6,2649.1,23.23318623]
[1646486451777,1.25524745,2649.5,2649.1,23.23318623]
[1646486451979,1.0,2649.9,2649.1,23.23318623]
[1646486452181,1.2548008,2649.8,2649.1,23.23318623]
[1646486452627,1.2548008,2649.7,2649.2,1.15461982]
[1646486452829,1.2548008,2649.6,2649.2,1.15461982]
[1646486453128,1.2548008,2649.5,2649.1,23.23318623]
[1646486453329,0.1887,2649.9,2649.1,23.23318623]
[1646486453529,1.25478469,2649.8,2649.1,23.23318623]
[1646486454133,1.25478469,2649.8,2649.1,24.37695781]
[1646486454728,0.1887,2650.0,2649.3,0.00125638]
[1646486454729,1.25478469,2649.7,2649.3,0.00125638]
[1646486454928,1.25478469,2649.6,2649.3,0.00125638]
[1646486455129,1.25478469,2649.5,2649.3,0.00125638]
[1646486455327,0.00081943,2649.2,2649.1,24.37695781]
[1646486455530,0.00081943,2649.2,2649.1,24.64392302]
[1646486455729,0.00081943,2649.2,2649.1,23.50015144]
[1646486457074,0.00081943,2649.2,2649.1,23.23318623]
[1646486458979,1.25527684,2649.2,2649.1,23.23318623]
[1646486459380,1.20527684,2649.2,2649.1,23.23318623]
[1646486459579,1.0,2649.5,2649.1,23.23318623]
[1646486459822,1.0,2649.7,2649.1,23.23318623]
[1646486460223,0.376,2649.7,2649.1,23.23318623]
[1646486460828,0.376,2649.7,2649.3,0.002944]
[1646486461730,0.376,2649.7,2649.1,23.23318623]
[1646486461932,0.376,2649.7,2649.4,0.00294396]
[1646486462130,0.5647,2649.7,2649.4,0.00294396]
[1646486462832,0.5647,2649.7,2649.1,23.23318623]
[1646486463032,0.5647,2649.7,2649.4,0.00294393]
[1646486463234,0.87369404,2649.7,2649.4,0.00294393]
[1646486463435,1.9128475,2650.0,2649.4,0.00294393]
[1646486463436,0.68499404,2649.9,2649.4,0.00294393]
[1646486463671,1.0,2650.0,2649.4,0.00294393]
[1646486463672,0.68499404,2650.0,2649.4,0.00294393]
[1646486464071,0.68499404,2650.0,2649.1,23.23318623]
[1646486464272,0.68499404,2650.0,2649.5,0.94218393]
[1646486464475,1.24969404,2650.1,2649.5,0.94218393]
[1646486464671,1.24969404,2650.1,2649.5,0.00116705]
[1646486464672,0.68499404,2650.0,2649.5,0.00116705]
[1646486465074,0.68499404,2649.9,2649.5,0.00116705]
[1646486465272,0.68499404,2649.9,2649.1,23.23318623]